fUST/lending_fUST_20250210
["ID","MTS","AMOUNT","RATE_DAILY","PERIOD"]
[352525229,1739151055183,-451.37774595,0.00012739,2]
[352525230,1739151055193,-515.56,0.00012739,2]
[352525231,1739151055203,-526.0807739,0.00012739,2]
[352525232,1739151055213,-151.0,0.00012739,2]
[352525233,1739151055223,-3404.15,0.00012739,2]
[352525234,1739151055232,-8700.3,0.00012739,2]
[352525235,1739151055242,-738.06,0.00012739,2]
[352525236,1739151055252,-1187.14,0.00012739,2]
[352525237,1739151055262,-3219.97,0.00012739,2]
[352525238,1739151055272,-584.62,0.00012739,2]
[352525239,1739151055281,-1808.21,0.00012739,2]
[352525240,1739151055291,-3658.6,0.00012739,2]
[352525241,1739151055300,-1029.68,0.00012739,2]
[352525242,1739151055310,-151.0,0.00012739,2]
[352525243,1739151055320,-460.19912,0.00012739,2]
[352525244,1739151055330,-449.1,0.00012739,2]
[352525245,1739151055340,-460.19912,0.00012739,2]
[352525246,1739151055349,-3294.42,0.00012739,2]
[352525247,1739151055359,-675.69,0.00012739,2]
[352525248,1739151055370,-1215.15,0.00012739,2]
[352525249,1739151055380,-500.0,0.00012739,2]
[352525250,1739151055390,-376.68695719,0.00012739,2]
[352525251,1739151055400,-1260.56,0.00012739,2]
[352525252,1739151055409,-11029.28,0.00012739,2]
[352525253,1739151055422,-1232.12,0.00012739,2]
[352525254,1739151055431,-1230.99,0.00012739,2]
[352525255,1739151055442,-500.0,0.00012739,2]
[352525256,1739151055452,-500.0,0.00012739,2]
[352525257,1739151055463,-500.0,0.00012739,2]
[352525258,1739151055473,-20893.0,0.00012739,2]
[352525259,1739151055483,-712.7,0.00012739,2]
[352525260,1739151055493,-1125.75,0.00012739,2]
[352525261,1739151055503,-151.0,0.00012739,2]
[352525262,1739151055513,-1830.91,0.00012739,2]
[352525263,1739151055523,-2183.81,0.00012739,2]
[352525264,1739151055532,-600.83,0.00012739,2]
[352525265,1739151055542,-151.0,0.00012739,2]
[352525266,1739151055552,-500.0,0.00012739,2]
[352525267,1739151055561,-151.0,0.00012739,2]
[352525268,1739151055571,-503.34,0.00012739,2]
[352525269,1739151055580,-978.35,0.00012739,2]
[352525270,1739151055590,-671.12,0.00012739,2]
[352525271,1739151055600,-931.46,0.00012739,2]
[352525272,1739151055610,-636.85,0.00012739,2]
[352525273,1739151055619,-151.0,0.00012739,2]
[352525274,1739151055629,-151.0,0.00012739,2]
[352525275,1739151055639,-578.15,0.00012739,2]
[352525276,1739151055649,-937.2,0.00012739,2]
[352525277,1739151055659,-805.57,0.00012739,2]
[352525278,1739151055671,-550.53,0.00012739,2]
[352525279,1739151055681,-1335.8,0.00012739,2]
[352525280,1739151055691,-500.0,0.00012739,2]
[352525281,1739151055701,-662.11,0.00012739,2]
[352525282,1739151055711,-543.51,0.00012739,2]
[352525283,1739151055721,-2887.24,0.00012739,2]
[352525284,1739151055731,-500.0,0.00012739,2]
[352525285,1739151055740,-151.0,0.00012739,2]
[352525286,1739151055750,-1000.0,0.00012769,2]
[352525287,1739151055760,-501.97350522,0.00012771,2]
[352525288,1739151055770,-1000.0,0.00012771,2]
[352525289,1739151055780,-500.0,0.00012771,2]
[352525290,1739151055790,-1098.13716015,0.00012773,2]
[352525291,1739151055799,-1000.0,0.00012776,2]
[352525292,1739151055809,-1000.0,0.00012776,2]
[352525293,1739151055818,-504.33934592,0.00012782,2]
[352525294,1739151055828,-808.3,0.00012876,2]
[352525295,1739151055837,-500.0,0.00012876,2]
[352525296,1739151055847,-500.0,0.00012876,2]
[352525297,1739151055857,-500.0,0.00012876,2]
[352525298,1739151055870,-990.28,0.00012876,2]
[352525299,1739151055878,-356.07,0.00012876,2]
[352525300,1739151055888,-500.0,0.00012876,2]
[352525301,1739151055898,-151.0,0.00012876,2]
[352525302,1739151055909,-521.51,0.00012876,2]
[352525303,1739151055922,-500.0,0.00012876,2]
[352525304,1739151055931,-1758.43,0.00012876,2]
[352525305,1739151055942,-515.56,0.00012876,2]
[352525306,1739151055952,-3404.15,0.00012876,2]
[352525307,1739151055962,-8700.3,0.00012876,2]
[352525308,1739151055972,-738.06,0.00012876,2]
[352525309,1739151055981,-1187.14,0.00012876,2]
[352525310,1739151055991,-3219.97,0.00012876,2]
[352525311,1739151056001,-584.62,0.00012876,2]
[352525312,1739151056010,-1808.21,0.00012876,2]
[352525313,1739151056019,-3658.6,0.00012876,2]
[352525314,1739151056029,-1029.68,0.00012876,2]
[352525315,1739151056039,-3294.42,0.00012876,2]
[352525316,1739151056048,-675.69,0.00012876,2]
[352525317,1739151056057,-1215.15,0.00012876,2]
[352525318,1739151056067,-500.0,0.00012876,2]
[352525319,1739151056076,-1260.56,0.00012876,2]
[352525320,1739151056086,-11029.28,0.00012876,2]
[352525321,1739151056095,-1232.12,0.00012876,2]
[352525322,1739151056105,-1230.99,0.00012876,2]
[352525323,1739151056115,-500.0,0.00012876,2]
[352525324,1739151056124,-500.0,0.00012876,2]
[352525325,1739151056134,-500.0,0.00012876,2]
[352525326,1739151056143,-20893.0,0.00012876,2]
[352525327,1739151056152,-712.7,0.00012876,2]
[352525328,1739151056161,-1125.75,0.00012876,2]
[352525329,1739151056171,-1830.91,0.00012876,2]
[352525330,1739151056180,-2183.81,0.00012876,2]
[352525331,1739151056190,-600.83,0.00012876,2]
[352525332,1739151056200,-500.0,0.00012876,2]
[352525333,1739151056210,-503.34,0.00012876,2]
[352525334,1739151056219,-978.35,0.00012876,2]
[352525335,1739151056228,-671.12,0.00012876,2]
[352525336,1739151056238,-931.46,0.00012876,2]
[352525337,1739151056247,-636.85,0.00012876,2]
[352525338,1739151056257,-578.15,0.00012876,2]
[352525339,1739151056266,-937.2,0.00012876,2]
[352525340,1739151056275,-805.57,0.00012876,2]
[352525341,1739151056285,-550.53,0.00012876,2]
[352525342,1739151056294,-1335.8,0.00012876,2]
[352525343,1739151056304,-500.0,0.00012876,2]
[352525344,1739151056314,-662.11,0.00012876,2]
[352525345,1739151056323,-543.51,0.00012876,2]
[352525346,1739151056333,-2887.24,0.00012876,2]
[352525347,1739151056342,-500.0,0.00012876,2]
[352525348,1739151056352,-151.0,0.000129,2]
[352525349,1739151056361,-3603.49920601,0.000129,2]
[352525350,1739151056371,-3603.49920595,0.000129,2]
[352525351,1739151056381,-3603.49920595,0.000129,2]
[352525352,1739151056390,-2000.0,0.00012992,2]
[352525353,1739151056399,-7438.69753278,0.00013,2]
[352525354,1739151056409,-808.3,0.00013013,2]
[352525355,1739151056419,-500.0,0.00013013,2]
[352525356,1739151056429,-500.0,0.00013013,2]
[352525357,1739151056439,-500.0,0.00013013,2]
[352525358,1739151056448,-990.28,0.00013013,2]
[352525359,1739151056458,-500.0,0.00013013,2]
[352525360,1739151056467,-521.51,0.00013013,2]
[352525361,1739151056477,-500.0,0.00013013,2]
[352525362,1739151056486,-1758.43,0.00013013,2]
[352525363,1739151056496,-515.56,0.00013013,2]
[352525364,1739151056506,-178.584237,0.00013013,2]
[352525365,1739151056516,-178.584237,0.00013013,2]
[352525366,1739151056526,-152.949574,0.00013013,2]
[352525367,1739151056536,-152.949574,0.00013013,2]
[352525368,1739151056546,-3404.15,0.00013013,2]
[352525369,1739151056556,-8700.3,0.00013013,2]
[352525370,1739151056567,-738.06,0.00013013,2]
[352525371,1739151056576,-1187.14,0.00013013,2]
[352525372,1739151056586,-3219.97,0.00013013,2]
[352525373,1739151056596,-584.62,0.00013013,2]
[352525374,1739151056606,-1808.21,0.00013013,2]
[352525375,1739151056616,-3658.6,0.00013013,2]
[352525376,1739151056627,-1029.68,0.00013013,2]
[352525377,1739151056636,-3294.42,0.00013013,2]
[352525378,1739151056646,-675.69,0.00013013,2]
[352525379,1739151056656,-1215.15,0.00013013,2]
[352525380,1739151056666,-500.0,0.00013013,2]
[352525381,1739151056677,-1260.56,0.00013013,2]
[352525382,1739151056687,-11029.28,0.00013013,2]
[352525383,1739151056697,-1232.12,0.00013013,2]
[352525384,1739151056706,-1230.99,0.00013013,2]
[352525385,1739151056717,-500.0,0.00013013,2]
[352525386,1739151056727,-500.0,0.00013013,2]
[352525387,1739151056737,-500.0,0.00013013,2]
[352525388,1739151056747,-151.0,0.00013013,2]
[352525389,1739151056757,-20893.0,0.00013013,2]
[352525390,1739151056767,-201.174518,0.00013013,2]
[352525391,1739151056776,-712.7,0.00013013,2]
[352525392,1739151056785,-151.0,0.00013013,2]
[352525393,1739151056795,-1125.75,0.00013013,2]
[352525394,1739151056804,-1830.91,0.00013013,2]
[352525395,1739151056815,-2183.81,0.00013013,2]
[352525396,1739151056896,-600.83,0.00013013,2]
[352525397,1739151056908,-500.0,0.00013013,2]
[352525398,1739151056921,-503.34,0.00013013,2]
[352525399,1739151056931,-978.35,0.00013013,2]
[352525400,1739151056943,-671.12,0.00013013,2]
[352525401,1739151056954,-931.46,0.00013013,2]
[352525402,1739151056964,-636.85,0.00013013,2]
[352525403,1739151056974,-151.0,0.00013013,2]
[352525404,1739151056983,-151.0,0.00013013,2]
[352525405,1739151056993,-578.15,0.00013013,2]
[352525406,1739151057003,-937.2,0.00013013,2]
[352525407,1739151057012,-151.0,0.00013013,2]
[352525408,1739151057022,-805.57,0.00013013,2]
[352525409,1739151057031,-550.53,0.00013013,2]
[352525410,1739151057041,-1335.8,0.00013013,2]
[352525411,1739151057051,-500.0,0.00013013,2]
[352525412,1739151057060,-151.0,0.00013013,2]
[352525413,1739151057069,-662.11,0.00013013,2]
[352525414,1739151057079,-543.51,0.00013013,2]
[352525415,1739151057089,-2887.24,0.00013013,2]
[352525416,1739151057098,-500.0,0.00013013,2]
[352525417,1739151057107,-808.3,0.0001315,2]
[352525418,1739151057117,-500.0,0.0001315,2]
[352525419,1739151057126,-500.0,0.0001315,2]
[352525420,1739151057135,-500.0,0.0001315,2]
[352525421,1739151057145,-990.28,0.0001315,2]
[352525422,1739151057154,-151.0,0.0001315,2]
[352525423,1739151057163,-500.0,0.0001315,2]
[352525424,1739151057175,-151.0,0.0001315,2]
[352525425,1739151057184,-521.51,0.0001315,2]
[352525426,1739151057193,-151.0,0.0001315,2]
[352525427,1739151057203,-500.0,0.0001315,2]
[352525428,1739151057212,-1758.43,0.0001315,2]
[352525429,1739151057221,-515.56,0.0001315,2]
[352525430,1739151057232,-3404.15,0.0001315,2]
[352525431,1739151057242,-8700.3,0.0001315,2]
[352525432,1739151057251,-738.06,0.0001315,2]
[352525433,1739151057261,-1187.14,0.0001315,2]
[352525434,1739151057271,-3219.97,0.0001315,2]
[352525435,1739151057280,-584.62,0.0001315,2]
[352525436,1739151057289,-1808.21,0.0001315,2]
[352525437,1739151057298,-3658.6,0.0001315,2]
[352525438,1739151057308,-1029.68,0.0001315,2]
[352525439,1739151057318,-3294.42,0.0001315,2]
[352525440,1739151057327,-675.69,0.0001315,2]
[352525441,1739151057337,-1215.15,0.0001315,2]
[352525442,1739151057346,-500.0,0.0001315,2]
[352525443,1739151057356,-1260.56,0.0001315,2]
[352525444,1739151057365,-11029.28,0.0001315,2]
[352525445,1739151057374,-1232.12,0.0001315,2]
[352525446,1739151057384,-1230.99,0.0001315,2]
[352525447,1739151057394,-500.0,0.0001315,2]
[352525448,1739151057403,-500.0,0.0001315,2]
[352525449,1739151057413,-500.0,0.0001315,2]
[352525450,1739151057425,-20893.0,0.0001315,2]
[352525451,1739151057435,-712.7,0.0001315,2]
[352525452,1739151057444,-1125.75,0.0001315,2]
[352525453,1739151057454,-1830.91,0.0001315,2]
[352525454,1739151057464,-2183.81,0.0001315,2]
[352525455,1739151057473,-600.83,0.0001315,2]
[352525456,1739151057483,-500.0,0.0001315,2]
[352525457,1739151057493,-503.34,0.0001315,2]
[352525458,1739151057503,-978.35,0.0001315,2]
[352525459,1739151057513,-671.12,0.0001315,2]
[352525460,1739151057523,-931.46,0.0001315,2]
[352525461,1739151057533,-636.85,0.0001315,2]
[352525462,1739151057543,-578.15,0.0001315,2]
[352525463,1739151057553,-937.2,0.0001315,2]
[352525464,1739151057562,-805.57,0.0001315,2]
[352525465,1739151057572,-550.53,0.0001315,2]
[352525466,1739151057582,-1335.8,0.0001315,2]
[352525467,1739151057592,-500.0,0.0001315,2]
[352525468,1739151057602,-662.11,0.0001315,2]
[352525469,1739151057611,-543.51,0.0001315,2]
[352525470,1739151057622,-2887.24,0.0001315,2]
[352525471,1739151057632,-500.0,0.0001315,2]
[352525472,1739151057642,-510.0,0.00013232,2]
[352525473,1739151057651,-151.0,0.00013266,2]
[352525474,1739151057660,-460.19912,0.00013266,2]
[352525475,1739151057669,-460.19912,0.00013266,2]
[352525476,1739151057679,-151.0,0.00013266,2]
[352525477,1739151057688,-151.0,0.00013266,2]
[352525478,1739151057697,-151.0,0.00013266,2]
[352525479,1739151057706,-151.0,0.00013266,2]
[352525480,1739151057715,-2301.34004777,0.00013266,2]
[352525481,1739151057724,-808.3,0.00013287,2]
[352525482,1739151057734,-500.0,0.00013287,2]
[352525483,1739151057743,-500.0,0.00013287,2]
[352525484,1739151057752,-500.0,0.00013287,2]
[352525485,1739151057761,-990.28,0.00013287,2]
[352525486,1739151057771,-500.0,0.00013287,2]
[352525487,1739151057780,-521.51,0.00013287,2]
[352525488,1739151057789,-500.0,0.00013287,2]
[352525489,1739151057798,-1758.43,0.00013287,2]
[352525490,1739151057807,-515.56,0.00013287,2]
[352525491,1739151057817,-1999.20011463,0.00013287,2]
[352525492,1739151057915,-1404.94988537,0.00013287,2]
[352525493,1739151057927,-8700.3,0.00013287,2]
[352525494,1739151057936,-738.06,0.00013287,2]
[352525495,1739151057947,-1187.14,0.00013287,2]
[352525496,1739151057956,-3219.97,0.00013287,2]
[352525497,1739151057966,-584.62,0.00013287,2]
[352525498,1739151057975,-1808.21,0.00013287,2]
[352525499,1739151057984,-3658.6,0.00013287,2]
[352525500,1739151057994,-1029.68,0.00013287,2]
[352525501,1739151058003,-3294.42,0.00013287,2]
[352525502,1739151058012,-675.69,0.00013287,2]
[352525503,1739151058022,-1215.15,0.00013287,2]
[352525504,1739151058031,-500.0,0.00013287,2]
[352525505,1739151058040,-1260.56,0.00013287,2]
[352525506,1739151058050,-11029.28,0.00013287,2]
[352525507,1739151058059,-1232.12,0.00013287,2]
[352525508,1739151058069,-1230.99,0.00013287,2]
[352525509,1739151058078,-500.0,0.00013287,2]
[352525510,1739151058087,-500.0,0.00013287,2]
[352525511,1739151058097,-500.0,0.00013287,2]
[352525512,1739151058106,-20893.0,0.00013287,2]
[352525513,1739151058115,-712.7,0.00013287,2]
[352525514,1739151058124,-1125.75,0.00013287,2]
[352525515,1739151058134,-1830.91,0.00013287,2]
[352525516,1739151058143,-2183.81,0.00013287,2]
[352525517,1739151058152,-600.83,0.00013287,2]
[352525518,1739151058162,-500.0,0.00013287,2]
[352525519,1739151058173,-978.35,0.00013287,2]
[352525520,1739151058183,-503.34,0.00013287,2]
[352525521,1739151058192,-671.12,0.00013287,2]
[352525522,1739151058202,-931.46,0.00013287,2]
[352525523,1739151058212,-636.85,0.00013287,2]
[352525524,1739151058221,-578.15,0.00013287,2]
[352525525,1739151058230,-937.2,0.00013287,2]
[352525526,1739151058239,-805.57,0.00013287,2]
[352525527,1739151058249,-550.53,0.00013287,2]
[352525528,1739151058258,-1335.8,0.00013287,2]
[352525529,1739151058267,-500.0,0.00013287,2]
[352525530,1739151058277,-662.11,0.00013287,2]
[352525531,1739151058286,-543.51,0.00013287,2]
[352525532,1739151058296,-2887.24,0.00013287,2]
[352525533,1739151058305,-500.0,0.00013287,2]
[352525534,1739151058315,-1098.13716015,0.00013318,2]
[352525535,1739151058325,-151.0,0.00013368,2]
[352525536,1739151058334,-808.3,0.00013424,2]
[352525537,1739151058416,-500.0,0.00013424,2]
[352525538,1739151058427,-500.0,0.00013424,2]
[352525539,1739151058436,-500.0,0.00013424,2]
[352525540,1739151058446,-990.28,0.00013424,2]
[352525541,1739151058455,-500.0,0.00013424,2]
[352525542,1739151058464,-521.51,0.00013424,2]
[352525543,1739151058474,-418.02,0.00013424,2]
[352525544,1739151058483,-1758.43,0.00013424,2]
[352525545,1739151058493,-515.56,0.00013424,2]
[352525546,1739151058502,-3404.15,0.00013424,2]
[352525547,1739151058512,-8700.3,0.00013424,2]
[352525548,1739151058522,-738.06,0.00013424,2]
[352525549,1739151058531,-1187.14,0.00013424,2]
[352525550,1739151058540,-3219.97,0.00013424,2]
[352525551,1739151058550,-584.62,0.00013424,2]
[352525552,1739151058560,-1808.21,0.00013424,2]
[352525553,1739151058569,-3658.6,0.00013424,2]
[352525554,1739151058579,-1029.68,0.00013424,2]
[352525555,1739151058589,-3294.42,0.00013424,2]
[352525556,1739151058598,-675.69,0.00013424,2]
[352525557,1739151058607,-1215.15,0.00013424,2]
[352525558,1739151058616,-500.0,0.00013424,2]
[352525559,1739151058626,-1260.56,0.00013424,2]
[352525560,1739151058635,-11029.28,0.00013424,2]
[352525561,1739151058644,-1232.12,0.00013424,2]
[352525562,1739151058654,-1230.99,0.00013424,2]
[352525563,1739151058663,-500.0,0.00013424,2]
[352525564,1739151058673,-500.0,0.00013424,2]
[352525565,1739151058682,-283.59629465,0.00013424,2]
[352525566,1739151058691,-20893.0,0.00013424,2]
[352525567,1739151058701,-712.7,0.00013424,2]
[352525568,1739151058710,-1125.75,0.00013424,2]
[352525569,1739151058720,-1830.91,0.00013424,2]
[352525570,1739151058730,-2183.81,0.00013424,2]
[352525571,1739151058740,-600.83,0.00013424,2]
[352525572,1739151058750,-500.0,0.00013424,2]
[352525573,1739151058759,-978.35,0.00013424,2]
[352525574,1739151058769,-503.34,0.00013424,2]
[352525575,1739151058778,-671.12,0.00013424,2]
[352525576,1739151058788,-931.46,0.00013424,2]
[352525577,1739151058797,-636.85,0.00013424,2]
[352525578,1739151058807,-937.2,0.00013424,2]
[352525579,1739151058815,-578.15,0.00013424,2]
[352525580,1739151058824,-805.57,0.00013424,2]
[352525581,1739151058834,-550.53,0.00013424,2]
[352525582,1739151058843,-1335.8,0.00013424,2]
[352525583,1739151058853,-500.0,0.00013424,2]
[352525584,1739151058865,-662.11,0.00013424,2]
[352525585,1739151058875,-543.51,0.00013424,2]
[352525586,1739151058885,-2887.24,0.00013424,2]
[352525587,1739151058895,-193.23041352,0.00013424,2]
[352525588,1739151058905,-3603.49920595,0.00013548,2]
[352525589,1739151058914,-808.3,0.00013561,2]
[352525590,1739151058926,-500.0,0.00013561,2]
[352525591,1739151058936,-500.0,0.00013561,2]
[352525592,1739151058945,-500.0,0.00013561,2]
[352525593,1739151058955,-990.28,0.00013561,2]
[352525594,1739151058964,-500.0,0.00013561,2]
[352525595,1739151058973,-151.0,0.00013561,2]
[352525596,1739151058982,-521.51,0.00013561,2]
[352525597,1739151058991,-1758.43,0.00013561,2]
[352525598,1739151059001,-515.56,0.00013561,2]
[352525599,1739151059011,-178.584237,0.00013561,2]
[352525600,1739151059020,-178.584237,0.00013561,2]
[352525601,1739151059030,-152.949574,0.00013561,2]
[352525602,1739151059039,-152.949574,0.00013561,2]
[352525603,1739151059049,-3404.15,0.00013561,2]
[352525604,1739151059059,-8700.3,0.00013561,2]
[352525605,1739151059068,-738.06,0.00013561,2]
[352525606,1739151059078,-1187.14,0.00013561,2]
[352525607,1739151059088,-3219.97,0.00013561,2]
[352525608,1739151059098,-584.62,0.00013561,2]
[352525609,1739151059107,-1808.21,0.00013561,2]
[352525610,1739151059117,-3658.6,0.00013561,2]
[352525611,1739151059127,-1029.68,0.00013561,2]
[352525612,1739151059137,-3294.42,0.00013561,2]
[352525613,1739151059147,-675.69,0.00013561,2]
[352525614,1739151059157,-1215.15,0.00013561,2]
[352525615,1739151059167,-500.0,0.00013561,2]
[352525616,1739151059178,-1260.56,0.00013561,2]
[352525617,1739151059187,-11029.28,0.00013561,2]
[352525618,1739151059197,-1232.12,0.00013561,2]
[352525619,1739151059207,-1230.99,0.00013561,2]
[352525620,1739151059217,-500.0,0.00013561,2]
[352525621,1739151059227,-500.0,0.00013561,2]
[352525622,1739151059236,-151.0,0.00013561,2]
[352525623,1739151059245,-20893.0,0.00013561,2]
[352525624,1739151059255,-712.7,0.00013561,2]
[352525625,1739151059265,-151.0,0.00013561,2]
[352525626,1739151059275,-1125.75,0.00013561,2]
[352525627,1739151059284,-1830.91,0.00013561,2]
[352525628,1739151059294,-2183.81,0.00013561,2]
[352525629,1739151059304,-600.83,0.00013561,2]
[352525630,1739151059314,-500.0,0.00013561,2]
[352525631,1739151059324,-978.35,0.00013561,2]
[352525632,1739151059335,-503.34,0.00013561,2]
[352525633,1739151059344,-671.12,0.00013561,2]
[352525634,1739151059354,-931.46,0.00013561,2]
[352525635,1739151059363,-636.85,0.00013561,2]
[352525636,1739151059373,-151.0,0.00013561,2]
[352525637,1739151059383,-151.0,0.00013561,2]
[352525638,1739151059393,-937.2,0.00013561,2]
[352525639,1739151059403,-578.15,0.00013561,2]
[352525640,1739151059413,-151.0,0.00013561,2]
[352525641,1739151059424,-805.57,0.00013561,2]
[352525642,1739151059434,-550.53,0.00013561,2]
[352525643,1739151059444,-1335.8,0.00013561,2]
[352525644,1739151059454,-368.44918277,0.00013561,2]
[352525645,1739151059465,-151.0,0.00013561,2]
[352525646,1739151059475,-662.11,0.00013561,2]
[352525647,1739151059485,-543.51,0.00013561,2]
[352525648,1739151059495,-2887.24,0.00013561,2]
[352525649,1739151059505,-800.0,0.00013659,2]
[352525650,1739151059515,-808.3,0.00013698,2]
[352525651,1739151059525,-500.0,0.00013698,2]
[352525652,1739151059534,-596.50975041,0.00013698,2]
[352525653,1739151059543,-500.0,0.00013698,2]
[352525654,1739151059552,-500.0,0.00013698,2]
[352525655,1739151059561,-990.28,0.00013698,2]
[352525656,1739151059571,-500.0,0.00013698,2]
[352525657,1739151059580,-521.51,0.00013698,2]
[352525658,1739151059590,-1758.43,0.00013698,2]
[352525659,1739151059600,-515.56,0.00013698,2]
[352525660,1739151059610,-151.0,0.00013698,2]
[352525661,1739151059620,-3404.15,0.00013698,2]
[352525662,1739151059630,-8700.3,0.00013698,2]
[352525663,1739151059640,-738.06,0.00013698,2]
[352525664,1739151059650,-1187.14,0.00013698,2]
[352525665,1739151059660,-3219.97,0.00013698,2]
[352525666,1739151059670,-584.62,0.00013698,2]
[352525667,1739151059679,-1808.21,0.00013698,2]
[352525668,1739151059689,-3658.6,0.00013698,2]
[352525669,1739151059699,-1029.68,0.00013698,2]
[352525670,1739151059710,-460.19912,0.00013698,2]
[352525671,1739151059719,-460.19912,0.00013698,2]
[352525672,1739151059730,-3294.42,0.00013698,2]
[352525673,1739151059740,-675.69,0.00013698,2]
[352525674,1739151059750,-1215.15,0.00013698,2]
[352525675,1739151059760,-500.0,0.00013698,2]
[352525676,1739151059775,-1260.56,0.00013698,2]
[352525677,1739151059789,-11029.28,0.00013698,2]
[352525678,1739151059799,-1232.12,0.00013698,2]
[352525679,1739151059809,-1230.99,0.00013698,2]
[352525680,1739151059819,-604.19,0.00013698,2]
[352525681,1739151059829,-500.0,0.00013698,2]
[352525682,1739151059839,-20893.0,0.00013698,2]
[352525683,1739151059849,-712.7,0.00013698,2]
[352525684,1739151059928,-1125.75,0.00013698,2]
[352525685,1739151059938,-1830.91,0.00013698,2]
[352525686,1739151059949,-2183.81,0.00013698,2]
[352525687,1739151059959,-600.83,0.00013698,2]
[352525688,1739151059969,-151.0,0.00013698,2]
[352525689,1739151059979,-500.0,0.00013698,2]
[352525690,1739151059989,-151.0,0.00013698,2]
[352525691,1739151059999,-978.35,0.00013698,2]
[352525692,1739151060009,-503.34,0.00013698,2]
[352525693,1739151060019,-671.12,0.00013698,2]
[352525694,1739151060030,-931.46,0.00013698,2]
[352525695,1739151060041,-636.85,0.00013698,2]
[352525696,1739151060051,-156.05558,0.00013698,2]
[352525697,1739151060062,-937.2,0.00013698,2]
[352525698,1739151060072,-578.15,0.00013698,2]
[352525699,1739151060083,-805.57,0.00013698,2]
[352525700,1739151060096,-550.53,0.00013698,2]
[352525701,1739151060106,-1335.8,0.00013698,2]
[352525702,1739151060116,-662.11,0.00013698,2]
[352525703,1739151060127,-543.51,0.00013698,2]
[352525704,1739151060137,-2887.24,0.00013698,2]
[352525705,1739151060147,-960.472476,0.00013699,2]
[352525706,1739151060156,-2802.6098397,0.00013699,2]
[352525707,1739151060166,-205.6991775,0.00013699,2]
[352525708,1739151060177,-1501.60771545,0.00013699,2]
[352525709,1739151060186,-500.0,0.00013699,2]
[352525710,1739151060196,-1501.60771545,0.00013699,2]
[352525711,1739151060207,-213.04506707,0.00013699,2]
[352525712,1739151060216,-1501.60771545,0.00013699,2]
[352525713,1739151060225,-1501.60771545,0.00013699,2]
[352525714,1739151060235,-1501.60771545,0.00013699,2]
[352525715,1739151060245,-1501.60771545,0.00013699,2]
[352525716,1739151060255,-1501.60771545,0.00013699,2]
[352525717,1739151060264,-1501.60771545,0.00013699,2]
[352525718,1739151060274,-1501.60771545,0.00013699,2]
[352525719,1739151060283,-1501.60771545,0.00013699,2]
[352525720,1739151060293,-1501.60771545,0.00013699,2]
[352525721,1739151060302,-1501.60771545,0.00013699,2]
[352525722,1739151060311,-1501.60771545,0.00013699,2]
[352525723,1739151060321,-1501.60771545,0.00013699,2]
[352525724,1739151060331,-1501.60771545,0.00013699,2]
[352525725,1739151060340,-1501.60771545,0.00013699,2]
[352525726,1739151060350,-1501.60771545,0.00013699,2]
[352525727,1739151060359,-1501.60771545,0.00013699,2]
[352525728,1739151060369,-1501.60771545,0.00013699,2]